[Event "Varsity Match 2024"]
[Site "Pall Mall"]
[Date "2024.03.02"]
[Round "1.2"]
[White "Hand, Freddie"]
[Black "Powierski, Emil"]
[Result "1/2-1/2"]
[ECO "D35"]
[WhiteElo "2190"]
[BlackElo "2288"]
[Annotator "TA"]
[PlyCount "91"]
[EventDate "2024.03.01"]
[EventType "team-tourn"]
[EventCountry "ENG"]
[SourceTitle "playchess.com"]
[Source "ChessBase"]
[SourceQuality "1"]
[TimeControl "40/6600+10:3000+30"]

{[%evp 15,91,18,18,8,24,19,37,22,39,37,47,14,23,28,26,15,25,27,25,29,44,18,42,35,70,68,54,0,0,14,27,30,32,26,32,31,35,-21,0,-2,0,0,0,0,16,0,11,0,0,0,0,0,4,0,45,44,54,47,36,36,55,60,55,55,53,41,44,43,43,39,39,39,40,45,51,8,8,0]} 1. d4 {[%emt 0:00:06]} Nf6 {[%emt 0:00:14]} 2. c4 {[%emt 0:00:10]} e6 {[%emt 0:00:06]} 3. Nc3 {[%emt 0:00:29]} d5 {[%emt 0:00:06]} 4. cxd5 {[%emt 0:00:36]} exd5 {[%emt 0:00:06]} 5. Bg5 {[%emt 0:00:07][%cal Bc1g5,Bg5h4,Bh4g3][%mdl 32]} c6 {[%emt 0:00:19]} 6. e3 {[%emt 0:00:48]} h6 {[%emt 0:00:13]} 7. Bh4 {[%emt 0:00:42]} Be7 {[%emt 0:00:23]} 8. Bd3 {[%emt 0:00:21]} O-O {[%emt 0:00:07]} 9. Nge2 {[%emt 0:00:41]} Ne8 {[%emt 0:01:05]} 10. Bg3 {[%emt 0:02:07]} Nd6 {[%emt 0:00:21]} 11. Qc2 {[%emt 0:02:16] Weiß steht etwas besser.} Re8 {[%emt 0:02:47]} 12. O-O {[%emt 0:00:21]} Bf8 {[%emt 0:01:16]} 13. b4 {[%emt 0:06:34]} Nd7 {[%emt 0:02:22]} 14. b5 {[%emt 0:04:09]} Nb6 {[%emt 0:01:31]} 15. bxc6 {[%emt 0:00:34]} bxc6 {[%emt 0:00:08]} 16. Na4 {[%emt 0:03:19]} Ndc4 {[%emt 0:18:20]} 17. Nc5 {[%emt 0:09:18]} a5 {[%emt 0:22:07]} 18. Nc3 {[%emt 0:07:43]} Na3 {[%emt 0:19:08]} 19. Qc1 {[%emt 0:11:53]} Bxc5 {[%emt 0:06:55]} 20. dxc5 {[%emt 0:00:28]} Nbc4 {[%emt 0:00:05]} 21. Nb1 {[%emt 0:08:09]} Nxb1 {[%emt 0:03:34]} 22. Rxb1 {[%emt 0:00:39]} Qe7 {[%emt 0:07:39]} 23. Bxc4 {[%emt 0:02:06]} dxc4 {[%emt 0:00:01]} 24. Bd6 {[%emt 0:01:39]} (24. Qxc4 $2 Ba6 25. Qc3 Bxf1 26. Rxf1 Qe4 $17) 24... Qg5 {[%emt 0:02:16]} 25. Kh1 {[%emt 0:09:03]} ({Und nicht} 25. Qxc4 Ba6 26. Qc2 Bxf1 27. Rxf1 Qh4 $17) 25... Bf5 {[%emt 0:01:24]} 26. Rb2 {[%emt 0:03:12]} (26. Rb6 $14) 26... Bd3 {[%emt 0:02:21]} 27. Re1 {[%emt 0:01:28][%cal Bf1e1,Be1c1,Bc1c3][%mdl 32] Weiss ist schwach auf den weissen Feldern} Qf6 {[%emt 0:07:38]} 28. f3 {[%emt 0:02:37]} a4 {[%emt 0:00:47]} 29. Rb6 {[%emt 0:03:21]} a3 {[%emt 0:01:11]} 30. Qd2 {[%emt 0:00:55]} Ra7 {[%emt 0:04:14]} 31. e4 {[%emt 0:07:47]} (31. Rxc6 $2 {geht unter.} Rb7 32. e4 Rb2 $19) 31... Qd4 {[%emt 0:00:02] ...c3 ist eine echte Drohung.} 32. Rc1 {[%emt 0:00:20]} Rea8 {[%emt 0:01:57]} 33. h3 {[%emt 0:04:53]} Ra6 {[%emt 0:01:13]} 34. Rb7 {[%emt 0:03:21]} Ra5 {[%emt 0:00:43]} 35. Qf4 {[%emt 0:01:29]} Qf6 {[%emt 0:00:33]} 36. Qxf6 {[%emt 0:01:28]} gxf6 {[%emt 0:00:01]} 37. Rc3 {[%emt 0:02:36]} R8a6 {[%emt 0:00:23]} 38. Rb6 {[%emt 0:02:12]} (38. Rb8+ Kg7 $17) 38... f5 {[%emt 0:01:32]} 39. exf5 {[%emt 0:02:15]} Bxf5 {[%emt 0:00:46]} 40. Rxc4 {[%emt 0:02:12]} Be6 {[%emt 0:00:30]} 41. Rc2 {[%emt 0:06:08]} Bd5 {[%emt 0:05:57]} 42. Rxa6 {[%emt 0:03:37]} Rxa6 {[%emt 0:00:34]} 43. Bf4 {[%emt 0:01:12]} Kh7 {[%emt 0:02:14]} 44. Bc1 {[%emt 0:13:08]} Ra4 {[%emt 0:06:51]} 45. Re2 {[%emt 0:02:39]} Ra5 {[%emt 0:01:42]} 46. Rc2 {[%emt 0:11:52] Gewichteter Fehlerwert: Weiß=0.07 (makellos) /Schwarz=0.09 (makellos) .  Fehler:       	Weiß=1     	---        Ungenau:       	Weiß=3     	Schwarz=2     OK:         	Weiß=17    	Schwarz=16    Bester:       	Weiß=2     	---} 1/2-1/2

[Event "Varsity Match 2024"]
[Site "Pall Mall"]
[Date "2024.03.02"]
[Round "1.3"]
[White "Sivakumar, Ashvin"]
[Black "Petr, Jan"]
[Result "1-0"]
[ECO "D27"]
[WhiteElo "2182"]
[BlackElo "2282"]
[Annotator "TA"]
[PlyCount "129"]
[EventDate "2024.03.01"]
[EventType "team-tourn"]
[EventCountry "ENG"]
[SourceTitle "playchess.com"]
[Source "ChessBase"]
[SourceQuality "1"]
[TimeControl "40/6600+10:3000+30"]

{[%evp 23,129,0,0,0,0,0,0,-2,6,0,0,0,16,18,40,54,51,47,102,85,187,167,181,199,207,208,205,210,206,212,299,294,306,293,316,331,330,317,372,373,410,371,532,527,937,518,970,614,612,619,677,673,706,695,749,743,795,809,747,796,818,798,796,769,787,775,908,914,994,988,6656,29955,8069,11450,7206,6087,5631,3498,29977,29970,29978,29978,29981,29980,29980,29981,29982,29982,29983,29976,29975,29977,29978,29979,29982,29983,29984,29985,29986,29987,29988,29989,29989,29988,29988,29989,29993,29994]} 1. d4 {[%emt 0:00:23]} d5 {[%emt 0:00:06]} 2. c4 {[%emt 0:01:05]} dxc4 {[%emt 0:00:24]} 3. e3 {[%emt 0:03:07]} Nf6 {[%emt 0:00:11]} 4. Bxc4 {[%emt 0:01:55]} e6 {[%emt 0:00:17]} 5. Nf3 {[%emt 0:02:27]} c5 {[%emt 0:00:06]} 6. O-O {[%emt 0:04:14]} a6 {[%emt 0:00:03]} 7. dxc5 {[%emt 0:07:23]} Bxc5 {[%emt 0:07:33]} 8. a3 {[%emt 0:15:05]} b5 {[%emt 0:02:16]} 9. Qxd8+ {[%emt 0:01:20]} Kxd8 {[%emt 0:00:04]} 10. Be2 {[%emt 0:01:28]} Bb7 {[%emt 0:01:17][%cal Bc8b7,Bb7d5,Bd5c4][%mdl 32]} 11. b4 {[%emt 0:00:41]} Bd6 {[%emt 0:01:14]} 12. Bb2 {[%emt 0:00:40]} Ke7 {[%emt 0:02:34]} 13. Nbd2 {[%emt 0:04:58]} Nbd7 {[%emt 0:00:11][%cal Bb8d7,Bd7b6,Bb6c4][%mdl 32]} 14. Nb3 {[%emt 0:06:25]} Rhc8 {[%emt 0:07:06]} 15. Rac1 {[%emt 0:07:13] Prevents Rc2. The position is equal.} Bd5 {[%emt 0:09:04]} 16. Nfd4 {[%emt 0:06:07]} Nb6 {[%emt 0:04:55]} 17. Na5 {[%emt 0:05:42]} Kd7 {[%emt 0:16:00]} (17... Ne4 $5) 18. f3 $1 {[%emt 0:11:09]} Nc4 {[%emt 0:04:07]} (18... Bc4 {simplifies} 19. Rfd1 Bxe2 20. Nxe2 Rxc1 21. Nxc1 Ke7) 19. Bxc4 {[%emt 0:03:35]} Bxc4 {[%emt 0:00:58]} 20. Rfd1 {[%emt 0:00:22]} Nd5 {[%emt 0:03:35] Black is now going downhill.} (20... Ne8 $14) 21. Kf2 {[%emt 0:15:37]} f5 {[%emt 0:00:38] [#]} (21... f6 $16 {was worth a try.}) 22. Nxf5 $1 $18 {[%emt 0:01:33][%mdl 512]} exf5 {[%emt 0:15:11]} 23. Nxc4 {[%emt 0:00:05]} (23. Bxg7 $2 {is the wrong capture.} Ke6 (23... Bxh2 $2 24. Nxc4 Ke6 25. Rxd5 $18) 24. Bd4 h5 $19 (24... Bxh2 25. f4 $15)) 23... Rxc4 {[%emt 0:04:57]} 24. Rxc4 {[%emt 0:00:57]} (24. Rxd5 Rxc1 25. Bxc1 Rc8 $14 (25... Ke6 26. Rd2 $14)) 24... bxc4 {[%emt 0:01:09]} 25. Rxd5 {[%emt 0:00:04][%mdl 4096] Endgame. KRB-KRB} Ke6 {[%emt 0:00:19]} 26. Ra5 {[%emt 0:00:48]} Rc8 {[%emt 0:00:01]} (26... g6 $142 27. g3 Bc7) 27. Rxa6 {[%emt 0:03:05]} c3 {[%emt 0:00:04]} 28. Bc1 {[%emt 0:00:00]} Kd5 {[%emt 0:01:16]} 29. Ke2 {[%emt 0:00:05]} Bxh2 {[%emt 0:11:47]} 30. Kd3 {[%emt 0:00:05]} g5 {[%emt 0:00:05]} 31. Rh6 {[%emt 0:00:31]} Bd6 {[%emt 0:01:25]} 32. Rxh7 {[%emt 0:00:36]} c2 {[%emt 0:01:07]} (32... g4 $142 33. Rh6 gxf3) 33. Rh6 {[%emt 0:01:42] And now e4+ would win.} g4 {[%emt 0:08:32]} 34. Rf6 {[%emt 0:01:25]} g3 {[%emt 0:02:05]} (34... Kc6 $142 35. Rxf5 (35. Kxc2 Kd7+ 36. Kb1 gxf3 $18) 35... gxf3 36. gxf3 (36. Kxc2 fxg2 37. Rg5 Be5 $18) 36... Kd7) 35. Rxf5+ {[%emt 0:00:16]} Ke6 {[%emt 0:00:08]} 36. Rg5 {[%emt 0:00:09]} Rh8 {[%emt 0:01:05]} 37. f4 {[%emt 0:00:21]} Rc8 {[%emt 0:01:32]} 38. Rg6+ {[%emt 0:00:06]} Kd7 {[%emt 0:01:37]} 39. Rxg3 {[%emt 0:00:13]} Be7 {[%emt 0:00:04]} 40. Rg6 {[%emt 0:00:06]} Ke8 {[%emt 0:00:42]} 41. Rg8+ {[%emt 0:51:38]} Bf8 {[%emt 0:50:42]} 42. g4 {[%emt 0:00:36]} Kf7 {[%emt 0:00:26]} 43. Rg5 {[%emt 0:00:24]} Be7 {[%emt 0:01:03]} 44. Rh5 {[%emt 0:00:33]} Ke6 {[%emt 0:00:42]} 45. Rh2 {[%emt 0:00:32]} Bf6 {[%emt 0:00:00]} 46. Rxc2 {[%emt 0:00:00]} Rh8 {[%emt 0:00:00]} 47. Rc6+ {[%emt 0:00:00]} Ke7 {[%emt 0:00:00] [#]} 48. Rxf6 $1 {[%emt 0:00:00] KRB-KR} Rd8+ {[%emt 0:00:00]} 49. Ke4 {[%emt 0:00:00] Intending Bb2 and mate.} Kxf6 {[%emt 0:00:00] KR-KB} 50. Bb2+ {[%emt 0:00:00]} Kg6 {[%emt 0:00:00]} 51. a4 {[%emt 0:00:00][%cal Ba3a4,Ba4a5][%mdl 32] White mates.} Rd2 {[%emt 0:00:00]} 52. Bd4 {[%emt 0:00:00]} Rg2 {[%emt 0:00:00]} 53. a5 {[%emt 0:00:00]} Ra2 {[%emt 0:00:00]} 54. Kd5 {[%emt 0:00:00]} Kf7 {[%emt 0:00:00]} 55. Kc6 {[%emt 0:00:00]} Ke8 {[%emt 0:00:00]} 56. a6 {[%emt 0:00:00]} Rxa6+ {[%emt 0:00:00]} 57. Kc7 {[%emt 0:00:00]} Ra2 {[%emt 0:00:00]} 58. b5 {[%emt 0:00:00][%cal Bb4b5,Bb5b6][%mdl 32]} Rc2+ {[%emt 0:00:00]} 59. Kd6 {[%emt 0:00:00]} Rc1 {[%emt 0:00:00]} 60. b6 {[%emt 0:00:00]} Rb1 {[%emt 0:00:00]} 61. g5 {[%emt 0:00:00]} Kf7 {[%emt 0:00:00]} 62. f5 {[%emt 0:00:00]} Kf8 {[%emt 0:00:00]} 63. Kc6 {[%emt 0:00:00]} Rc1+ {[%emt 0:00:00]} 64. Bc5+ {[%emt 0:00:00]} Rxc5+ {[%emt 0:00:00]} 65. Kxc5 {[%emt 0:00:00] Weighted Error Value: White=0.39/Black=0.40.  Mistake:       	---       	Black=5      Inaccurate:     	White=1     	Black=1      OK:         	White=11    	Black=7      Best:        	White=2     	---        Strong:       	White=1     	---} 1-0

[Event "Varsity Match 2024"]
[Site "Pall Mall"]
[Date "2024.03.02"]
[Round "1.4"]
[White "Williams, Johann"]
[Black "Gallagher, Daniel GH"]
[Result "0-1"]
[ECO "E66"]
[WhiteElo "2038"]
[BlackElo "2219"]
[Annotator "RC"]
[PlyCount "118"]
[EventDate "2024.03.01"]
[EventType "team-tourn"]
[EventCountry "ENG"]
[SourceTitle "playchess.com"]
[Source "ChessBase"]
[SourceQuality "1"]
[TimeControl "40/6600+10:3000+30"]

1. d4 {[%emt 0:00:03]} Nf6 {[%emt 0:00:13]} 2. c4 {[%emt 0:00:04]} g6 {[%emt 0:00:04]} 3. Nf3 {[%emt 0:00:04]} Bg7 {[%emt 0:00:05]} 4. g3 {[%emt 0:00:04]} O-O {[%emt 0:01:08]} 5. Bg2 {[%emt 0:00:06]} d6 {[%emt 0:00:06]} 6. Nc3 {[%emt 0:00:05]} Nc6 {[%emt 0:02:54]} 7. d5 {[%emt 0:01:53]} Na5 {[%emt 0:00:09]} 8. Nd2 {[%emt 0:02:58]} c5 {[%emt 0:00:13]} 9. O-O {[%emt 0:00:25]} a6 {[%emt 0:00:41]} 10. Rb1 {[%emt 0:07:16]} Rb8 {[%emt 0:00:41]} 11. a3 {[%emt 0:05:29]} b5 {[%emt 0:00:58]} 12. cxb5 {[%emt 0:02:42]} axb5 {[%emt 0:00:22]} 13. b4 {[%emt 0:01:06]} cxb4 {[%emt 0:07:44]} 14. axb4 {[%emt 0:00:08]} Nc4 {[%emt 0:00:15]} 15. Nxc4 {[%emt 0:13:14]} bxc4 {[%emt 0:00:07]} 16. h3 {[%emt 0:05:38]} Qc7 {[%emt 0:09:05]} 17. Qc2 {[%emt 0:02:08]} Bd7 {[%emt 0:05:11]} 18. e4 {[%emt 0:06:04]} Rb7 {[%emt 0:07:21]} 19. Bd2 {[%emt 0:09:05]} Rfb8 {[%emt 0:08:53]} 20. Ne2 {[%emt 0:04:35]} Qc8 {[%emt 0:18:04]} 21. Kh2 {[%emt 0:00:47]} c3 {[%emt 0:14:10]} 22. Nxc3 {[%emt 0:06:20]} Rxb4 {[%emt 0:00:33]} 23. Rxb4 {[%emt 0:02:27]} Rxb4 {[%emt 0:00:02]} 24. Rc1 {[%emt 0:22:45]} Rc4 {[%emt 0:06:41]} 25. Qb3 {[%emt 0:04:51]} h5 {[%emt 0:07:09]} 26. Ne2 {[%emt 0:04:27]} Rxc1 {[%emt 0:00:06]} 27. Nxc1 {[%emt 0:00:33]} Ne8 {[%emt 0:09:20]} 28. Be3 {[%emt 0:01:03]} Nc7 {[%emt 0:02:49]} 29. Nd3 {[%emt 0:01:12]} Nb5 {[%emt 0:00:51]} 30. Nb4 {[%emt 0:01:48]} Nd4 {[%emt 0:02:10]} 31. Qd3 {[%emt 0:01:06]} Bb5 {[%emt 0:00:37]} 32. Qd2 {[%emt 0:03:02]} Qc4 {[%emt 0:00:19]} 33. Bxd4 {[%emt 0:01:29]} Bxd4 {[%emt 0:02:23]} 34. Nc6 {[%emt 0:00:02]} Bf6 {[%emt 0:00:20]} 35. e5 {[%emt 0:00:42]} dxe5 {[%emt 0:00:34]} 36. d6 {[%emt 0:00:13]} Bxc6 {[%emt 0:01:12]} 37. d7 {[%emt 0:00:13]} Bxd7 {[%emt 0:00:43]} 38. Qxd7 {[%emt 0:00:01]} Kg7 {[%emt 0:01:03]} 39. Qd2 {[%emt 0:00:13]} Qc5 {[%emt 0:00:29]} 40. Qe2 {[%emt 0:00:12]} Qd4 {[%emt 0:00:17]} 41. h4 {[%emt 0:05:05]} e6 {[%emt 0:03:00]} 42. Qe3 {[%emt 0:27:52]} Qb2 {[%emt 0:06:20]} 43. Kg1 {[%emt 0:01:30]} Bd8 {[%emt 0:00:45]} 44. Qe1 {[%emt 0:08:01]} Bb6 {[%emt 0:01:20]} 45. Bf1 {[%emt 0:02:00]} Qd4 {[%emt 0:01:50]} 46. Qe2 {[%emt 0:02:39]} e4 {[%emt 0:02:19]} 47. Bg2 {[%emt 0:01:01]} f5 {[%emt 0:01:44]} 48. Bf1 {[%emt 0:01:28]} Kf6 {[%emt 0:03:20]} 49. Bg2 {[%emt 0:00:49]} Bc5 {[%emt 0:11:23]} 50. Bf1 {[%emt 0:01:03]} Qe5 {[%emt 0:01:25]} 51. Kh1 {[%emt 0:02:22]} f4 {[%emt 0:06:16]} 52. gxf4 {[%emt 0:01:49]} Qxf4 {[%emt 0:00:26]} 53. Qb2+ {[%emt 0:00:37]} e5 {[%emt 0:02:03]} 54. Qb8 {[%emt 0:01:05]} Qxh4+ {[%emt 0:00:30]} 55. Bh3 {[%emt 0:00:28]} Qxh3+ {[%emt 0:00:31]} 56. Kg1 {[%emt 0:00:22]} Qg3+ {[%emt 0:00:39]} 57. Kh1 {[%emt 0:00:23]} Qf3+ {[%emt 0:00:26]} 58. Kh2 {[%emt 0:00:38]} Qxf2+ {[%emt 0:00:32]} 59. Kh3 {[%emt 0:00:28]} Qf1+ {[%emt 0:00:42]} 0-1

[Event "Varsity Match 2024"]
[Site "Pall Mall"]
[Date "2024.03.02"]
[Round "1.5"]
[White "French, Max"]
[Black "Ratnesan, Ranesh"]
[Result "1/2-1/2"]
[ECO "D36"]
[WhiteElo "2226"]
[BlackElo "2138"]
[Annotator "TA"]
[PlyCount "94"]
[EventDate "2024.03.01"]
[EventType "team-tourn"]
[EventCountry "ENG"]
[SourceTitle "playchess.com"]
[Source "ChessBase"]
[SourceQuality "1"]
[TimeControl "40/6600+10:3000+30"]

{[%evp 17,94,21,15,17,21,0,15,-12,0,0,-3,-10,57,57,60,44,44,10,43,43,41,12,20,0,0,0,0,0,0,0,0,0,6,10,16,5,2,0,0,0,14,6,6,2,16,0,0,0,0,0,0,0,0,0,0,0,0,0,0,0,0,0,0,0,9,29,29,8,35,0,0,0,0,0,0,0,0,0,0]} 1. d4 {[%emt 0:00:04]} d5 {[%emt 0:00:18]} 2. c4 {[%emt 0:00:18]} e6 {[%emt 0:00:08]} 3. Nc3 {[%emt 0:00:34]} Nf6 {[%emt 0:00:09]} 4. cxd5 {[%emt 0:00:35]} exd5 {[%emt 0:00:08]} 5. Bg5 {[%emt 0:00:40]} c6 {[%emt 0:00:10]} 6. e3 {[%emt 0:00:41]} Be7 {[%emt 0:00:09]} 7. Bd3 {[%emt 0:01:28]} Nbd7 {[%emt 0:00:27]} 8. Qc2 {[%emt 0:02:06]} h6 {[%emt 0:00:38]} 9. Bh4 {[%emt 0:01:28]} Nh5 {[%emt 0:00:53]} 10. Bxe7 {[%emt 0:00:50]} Qxe7 {[%emt 0:00:09]} 11. Nf3 {[%emt 0:01:43]} Nf4 {[%emt 0:01:30]} 12. O-O {[%emt 0:01:12]} Nxd3 {[%emt 0:00:45]} 13. Qxd3 {[%emt 0:00:08]} O-O {[%emt 0:00:36]} 14. Rfe1 {[%emt 0:00:55]} f5 {[%emt 0:06:54]} (14... Nf6 $11) 15. Rac1 $14 {[%emt 0:18:34]} Qd6 {[%emt 0:08:11]} 16. Na4 {[%emt 0:08:28]} f4 {[%emt 0:17:18]} 17. Nc5 {[%emt 0:11:56]} fxe3 {[%emt 0:02:19]} 18. Qxe3 {[%emt 0:06:56]} Nxc5 {[%emt 0:17:24]} 19. dxc5 {[%emt 0:01:39]} Qf6 {[%emt 0:00:22]} 20. Qe5 {[%emt 0:13:29]} Bg4 {[%emt 0:02:18]} 21. Qxf6 {[%emt 0:03:38]} Rxf6 {[%emt 0:00:24]} 22. Nd2 {[%emt 0:06:43]} Raf8 {[%emt 0:05:18]} 23. f3 {[%emt 0:00:46]} Bd7 {[%emt 0:00:26]} 24. Rc3 {[%emt 0:04:21]} Kf7 {[%emt 0:11:54]} 25. Ra3 {[%emt 0:02:09]} a6 {[%emt 0:01:24]} 26. Rb3 {[%emt 0:01:05]} Bc8 {[%emt 0:00:07]} 27. Kf2 {[%emt 0:02:29]} g5 {[%emt 0:03:07]} 28. Rbe3 {[%emt 0:01:55]} Re6 {[%emt 0:04:52]} 29. Nb3 {[%emt 0:01:42]} Rxe3 {[%emt 0:04:57]} 30. Rxe3 $11 {[%emt 0:00:12][%mdl 4096] Endgame. KRB-KRN} Kf6 {[%emt 0:00:47]} 31. Nd4 {[%emt 0:01:51]} h5 {[%emt 0:02:03]} 32. b4 {[%emt 0:02:25]} h4 {[%emt 0:02:08]} 33. a4 {[%emt 0:02:42]} Bd7 {[%emt 0:00:50]} 34. a5 {[%emt 0:04:38]} Rf7 {[%emt 0:03:49]} 35. Ke2 {[%emt 0:01:36]} Rg7 {[%emt 0:04:09]} 36. Kd3 {[%emt 0:01:17]} g4 {[%emt 0:02:13]} 37. fxg4 {[%emt 0:01:56]} Bxg4 {[%emt 0:01:43]} 38. g3 {[%emt 0:00:29]} h3 {[%emt 0:02:26]} 39. Re1 {[%emt 0:00:25]} Bf5+ {[%emt 0:01:37]} 40. Kc3 {[%emt 0:00:34] [#] And now Rf1 would win.} Be4 {[%emt 0:00:33]} 41. Rf1+ {[%emt 0:10:39]} Ke5 {[%emt 0:07:55]} 42. Rf8 {[%emt 0:14:41]} Rg4 {[%emt 0:18:03]} (42... Rxg3+ $5 43. hxg3 h2 44. Re8+ Kf6 45. Rf8+ Ke5 46. Re8+ Kf6 47. Rf8+ Ke7 $14) 43. Rf2 {[%emt 0:10:21]} (43. Rf7 Rxg3+ 44. hxg3 h2) 43... Bg2 {[%emt 0:03:44] The position is equal.} 44. Rf5+ {[%emt 0:03:25]} Ke4 {[%emt 0:01:10]} 45. Rf2 {[%emt 0:01:56][%cal Rf2e2] [#]} Ke5 {[%emt 0:05:02]} 46. Rf5+ {[%emt 0:03:13]} Ke4 {[%emt 0:00:25]} 47. Rf2 {[%emt 0:01:11][%cal Rf2e2]} Ke5 {[%emt 0:00:53] Weighted Error Value: White=0.07 (flawless) /Black=0.07 (flawless) .  Mistake:       	---       	Black=1      Inaccurate:     	White=4     	Black=2      OK:         	White=10    	Black=20     Best:        	---       	Black=2} 1/2-1/2

[Event "Varsity Match 2024"]
[Site "Pall Mall"]
[Date "2024.03.02"]
[Round "1.6"]
[White "Rushbrooke, Remy"]
[Black "Miller, Dominic"]
[Result "1/2-1/2"]
[ECO "A05"]
[WhiteElo "2085"]
[BlackElo "2086"]
[Annotator "NA RC"]
[PlyCount "84"]
[EventDate "2024.03.01"]
[EventType "team-tourn"]
[EventCountry "ENG"]
[SourceTitle "playchess.com"]
[Source "ChessBase"]
[SourceQuality "1"]
[TimeControl "40/6600+10:3000+30"]

1. Nf3 {[%emt 0:00:04]} Nf6 {[%emt 0:00:05]} 2. g3 {[%emt 0:00:04]} g6 {[%emt 0:00:03]} 3. Bg2 {[%emt 0:00:05]} Bg7 {[%emt 0:00:06]} 4. O-O {[%emt 0:00:10]} O-O {[%emt 0:00:04]} 5. b3 {[%emt 0:01:34]} d5 {[%emt 0:00:23]} 6. Bb2 {[%emt 0:00:03]} c5 {[%emt 0:00:35]} 7. d4 {[%emt 0:01:14]} cxd4 {[%emt 0:00:41]} 8. Nbd2 {[%emt 0:02:40]} Re8 {[%emt 0:02:40]} 9. Bxd4 {[%emt 0:01:37]} Nc6 {[%emt 0:00:17]} 10. Bb2 {[%emt 0:00:01]} e5 {[%emt 0:00:28]} 11. e3 {[%emt 0:04:36]} h6 {[%emt 0:11:09]} 12. c4 {[%emt 0:02:59]} e4 {[%emt 0:07:09]} 13. Nd4 {[%emt 0:00:51]} Ne5 {[%emt 0:00:30]} 14. cxd5 {[%emt 0:02:06]} Nd3 {[%emt 0:00:07]} 15. Nxe4 {[%emt 0:06:33]} Nxb2 {[%emt 0:00:09]} 16. Nxf6+ {[%emt 0:00:03]} Bxf6 {[%emt 0:00:45]} 17. Qc2 {[%emt 0:00:01]} Bxd4 {[%emt 0:02:41]} 18. exd4 {[%emt 0:00:06]} Bf5 {[%emt 0:00:30]} 19. Qxb2 {[%emt 0:00:02]} Be4 {[%emt 0:00:04]} 20. Bxe4 {[%emt 0:06:41]} Rxe4 {[%emt 0:00:02]} 21. Qd2 {[%emt 0:01:34]} Qxd5 {[%emt 0:02:57]} 22. Qxh6 {[%emt 0:00:07]} Rxd4 {[%emt 0:00:08]} 23. Rac1 {[%emt 0:03:36]} Rd8 {[%emt 0:06:40]} 24. Qe3 {[%emt 0:05:30]} a5 {[%emt 0:03:33]} 25. Rc7 {[%emt 0:04:46]} b5 {[%emt 0:15:49]} 26. Re7 {[%emt 0:06:03]} a4 {[%emt 0:14:15]} 27. Re5 {[%emt 0:07:09]} Qc6 {[%emt 0:00:40]} 28. Re1 {[%emt 0:00:58]} Rd1 {[%emt 0:05:57]} 29. Qf4 {[%emt 0:05:36]} Qc2 {[%emt 0:08:46]} 30. Rxd1 {[%emt 0:17:00]} Qxd1+ {[%emt 0:00:28]} 31. Kg2 {[%emt 0:00:04]} axb3 {[%emt 0:00:32]} 32. axb3 {[%emt 0:00:02]} Qxb3 {[%emt 0:01:46]} 33. Qg5 {[%emt 0:02:09]} Qd3 {[%emt 0:09:29]} 34. h4 {[%emt 0:01:08]} Rf8 {[%emt 0:04:40]} 35. Qf4 {[%emt 0:09:23]} Qc4 {[%emt 0:01:26]} 36. Qf6 {[%emt 0:00:13]} Rc8 {[%emt 0:01:21]} 37. Kh2 {[%emt 0:00:21]} Qc6 {[%emt 0:00:31]} 38. Qf4 {[%emt 0:00:27]} Re8 {[%emt 0:00:53]} 39. Rxe8+ {[%emt 0:02:03]} Qxe8 {[%emt 0:00:03]} 40. h5 {[%emt 0:00:13]} gxh5 {[%emt 0:02:22]} 41. Qg5+ {[%emt 0:50:47]} Kf8 {[%emt 0:50:46]} 42. Qxh5 {[%emt 0:00:59]} Qc6 {[%emt 0:00:33]} 1/2-1/2

[Event "Varsity Match 2024"]
[Site "Pall Mall"]
[Date "2024.03.02"]
[Round "1.7"]
[White "Gurner, Jem"]
[Black "Goh, Jinghan Cameron"]
[Result "0-1"]
[ECO "E39"]
[WhiteElo "1968"]
[BlackElo "1972"]
[Annotator "NA RC"]
[PlyCount "106"]
[EventDate "2024.03.01"]
[EventType "team-tourn"]
[EventCountry "ENG"]
[SourceTitle "playchess.com"]
[Source "ChessBase"]
[SourceQuality "1"]
[TimeControl "40/6600+10:3000+30"]

1. d4 {[%emt 0:00:03]} Nf6 {[%emt 0:00:06]} 2. c4 {[%emt 0:00:06]} e6 {[%emt 0:00:04]} 3. Nc3 {[%emt 0:00:06]} Bb4 {[%emt 0:00:08]} 4. Qc2 {[%emt 0:00:12]} c5 {[%emt 0:00:25]} 5. dxc5 {[%emt 0:01:10]} Na6 {[%emt 0:00:10]} 6. a3 {[%emt 0:01:33]} Bxc3+ {[%emt 0:00:06]} 7. Qxc3 {[%emt 0:00:14]} Nxc5 {[%emt 0:00:09]} 8. Nf3 {[%emt 0:01:27]} O-O {[%emt 0:00:10]} 9. g3 {[%emt 0:05:12]} b6 {[%emt 0:03:14]} 10. Bg2 {[%emt 0:00:55]} Bb7 {[%emt 0:01:32]} 11. O-O {[%emt 0:02:14]} Rc8 {[%emt 0:00:56]} 12. Rd1 {[%emt 0:14:56]} d5 {[%emt 0:11:08]} 13. Ne5 {[%emt 0:18:33]} Nfe4 {[%emt 0:04:25]} 14. Qc2 {[%emt 0:15:49]} Qf6 {[%emt 0:08:33]} 15. Ng4 {[%emt 0:02:07]} Qf5 {[%emt 0:01:15]} 16. b4 {[%emt 0:08:27]} Qxg4 {[%emt 0:21:36]} 17. bxc5 {[%emt 0:02:43]} Nxc5 {[%emt 0:01:29]} 18. cxd5 {[%emt 0:04:02]} Na4 {[%emt 0:00:35]} 19. Qd3 {[%emt 0:07:45]} Nc3 {[%emt 0:04:43]} 20. Rd2 {[%emt 0:02:09]} Bxd5 {[%emt 0:02:35]} 21. Bxd5 {[%emt 0:02:15]} Nxd5 {[%emt 0:00:29]} 22. Bb2 {[%emt 0:01:48]} h5 {[%emt 0:03:15]} 23. e4 {[%emt 0:04:26]} Nf4 {[%emt 0:06:51]} 24. Qe3 {[%emt 0:00:19]} Ng6 {[%emt 0:08:19]} 25. f3 {[%emt 0:02:41]} Qh3 {[%emt 0:00:11]} 26. Rad1 {[%emt 0:03:13]} Kh7 {[%emt 0:08:20]} 27. Rd7 {[%emt 0:03:00]} h4 {[%emt 0:05:09]} 28. Qf2 {[%emt 0:00:42]} a5 {[%emt 0:02:55]} 29. Rb7 {[%emt 0:02:13]} Rc6 {[%emt 0:00:30]} 30. Rd2 {[%emt 0:01:29]} Rfc8 {[%emt 0:03:28]} 31. Qg2 {[%emt 0:00:31]} Qxg2+ {[%emt 0:01:12]} 32. Kxg2 {[%emt 0:00:02]} Rc2 {[%emt 0:01:02]} 33. Rbd7 {[%emt 0:00:02]} e5 {[%emt 0:01:53]} 34. Kh3 {[%emt 0:01:05]} hxg3 {[%emt 0:00:25]} 35. hxg3 {[%emt 0:00:02]} b5 {[%emt 0:00:41]} 36. R7d5 {[%emt 0:00:39]} Rxd2 37. Rxd2 {[%emt 0:00:01]} b4 {[%emt 0:06:42]} 38. axb4 {[%emt 0:01:12]} axb4 {[%emt 0:00:34]} 39. Rd5 {[%emt 0:00:22]} f6 {[%emt 0:00:31]} 40. Rb5 {[%emt 0:00:34]} Rc4 {[%emt 0:00:08]} 41. Kg4 {[%emt 0:05:39]} Ne7 {[%emt 0:10:42]} 42. f4 {[%emt 0:13:27]} exf4 {[%emt 0:03:32]} 43. Kxf4 {[%emt 0:00:46]} f5 {[%emt 0:05:57]} 44. Kf3 {[%emt 0:04:49]} fxe4+ {[%emt 0:01:02]} 45. Ke3 {[%emt 0:01:08]} Kg6 {[%emt 0:04:22]} 46. g4 {[%emt 0:00:59]} Ng8 {[%emt 0:02:49]} 47. Bd4 {[%emt 0:02:35]} Nf6 {[%emt 0:03:25]} 48. g5 {[%emt 0:01:23]} Ne8 {[%emt 0:01:56]} 49. Re5 {[%emt 0:03:17]} Nc7 {[%emt 0:02:04]} 50. Kxe4 {[%emt 0:01:34]} b3 {[%emt 0:00:46]} 51. Kd3 {[%emt 0:02:24]} Rxd4+ {[%emt 0:00:27]} 52. Kc3 {[%emt 0:11:41]} Rd5 {[%emt 0:00:40]} 53. Re7 {[%emt 0:00:38]} Rb5 {[%emt 0:00:29]} 0-1